bitfinex/quotes_SOLUSD_20241010
["timestamp","ask_amount","ask_price","bid_price","bid_amount"]
[1728595114467,7.265,137.65,137.57,23.776884]
[1728595114653,7.265,137.65,137.57,53.776884]
[1728595115088,0.12549,137.64,137.57,53.776884]
[1728595115281,0.25098,137.64,137.57,53.776884]
[1728595117987,0.25098,137.64,137.57,30.0]
[1728595119983,7.2662,137.63,137.57,30.0]
[1728595120187,0.12549,137.61,137.57,30.0]
[1728595121260,0.12549,137.61,137.56,6.1033]
[1728595121461,0.12549,137.61,137.55,15.5586]
[1728595121462,0.12549,137.6,137.55,15.5586]
[1728595126178,7.39369,137.59,137.55,15.5586]
[1728595126379,0.12549,137.58,137.53,6.6223]
[1728595131992,13.901,137.63,137.54,31.45373881]
[1728595132306,6.6347,137.63,137.54,30.0]
[1728595133107,7.2667,137.62,137.54,30.0]
[1728595133490,24.027864,137.62,137.55,1.45367008]
[1728595133705,0.25098,137.62,137.55,1.45367008]
[1728595134006,7.2653,137.64,137.54,44.25301626]
[1728595135309,0.25098,137.63,137.54,44.25301626]
[1728595138103,0.25098,137.61,137.54,30.0]
[1728595139201,7.51808,137.61,137.54,30.0]
[1728595139403,0.25098,137.61,137.54,30.0]
[1728595139899,7.51838,137.61,137.53,6.6223]
[1728595140106,0.25098,137.59,137.53,6.6223]
[1728595141815,7.51888,137.59,137.53,6.6223]
[1728595142110,0.25098,137.59,137.53,6.6223]
[1728595146317,7.51898,137.59,137.53,6.6223]
[1728595148016,0.25098,137.59,137.53,6.6223]
[1728595148324,0.25098,137.57,137.53,6.6223]
[1728595149227,0.25098,137.57,137.52,15.5986]
[1728595149228,7.52008,137.57,137.52,15.5986]
[1728595150398,0.25098,137.57,137.52,15.5986]
[1728595152213,7.51998,137.57,137.52,15.5986]
[1728595156337,0.25098,137.57,137.52,15.5986]
[1728595157207,7.52008,137.57,137.52,15.5986]
[1728595161337,7.2697,137.56,137.52,15.5986]
[1728595161528,0.25098,137.55,137.52,15.5986]
[1728595162843,0.25098,137.56,137.52,15.5986]
[1728595163023,7.52058,137.56,137.52,15.5986]
[1728595163225,0.25098,137.56,137.49,6.3963]
[1728595164444,0.25098,137.54,137.49,6.3963]
[1728595164736,0.25098,137.52,137.48,15.0581]
[1728595188062,7.52268,137.52,137.48,15.0581]
[1728595188358,7.52268,137.52,137.46,6.4058]
[1728595193097,0.25098,137.5,137.46,6.4058]
[1728595196096,0.25098,137.51,137.46,7.86060989]
[1728595198183,0.25098,137.51,137.46,6.4058]
[1728595201000,0.25098,137.51,137.46,7.86056366]
[1728595201202,0.25098,137.51,137.46,7.86048415]
[1728595201434,0.25098,137.51,137.46,6.4058]
[1728595202284,0.25098,137.51,137.46,7.86048844]
[1728595202485,0.25098,137.51,137.46,6.4058]
[1728595204508,0.25098,137.52,137.47,1.45465097]
[1728595204798,0.25098,137.52,137.46,6.4058]
[1728595218631,7.52258,137.52,137.46,6.4058]
[1728595220934,35.58343534,137.57,137.46,6.4058]
[1728595220935,7.2707,137.54,137.46,6.4058]
[1728595221246,24.1936,137.57,137.46,6.4058]
[1728595221450,7.2706,137.54,137.46,6.4058]
[1728595221836,24.1936,137.57,137.46,6.4058]
[1728595222056,7.2704,137.55,137.46,6.4058]
[1728595222240,0.25098,137.54,137.46,6.4058]
[1728595222430,7.52158,137.54,137.46,6.4058]
[1728595224745,7.52158,137.54,137.47,30.0]
[1728595225635,7.52158,137.54,137.46,6.4058]
[1728595228741,7.52158,137.54,137.47,30.0]
[1728595235255,7.52158,137.54,137.46,6.4058]
[1728595238069,7.52158,137.54,137.47,30.0]
[1728595239052,0.25098,137.54,137.47,30.0]
[1728595240339,0.25098,137.54,137.47,44.25301626]
[1728595240544,0.25098,137.54,137.48,1.45441512]
[1728595240745,0.25098,137.54,137.47,14.25301626]
[1728595240970,0.25098,137.54,137.46,20.65881626]
[1728595241468,0.25098,137.54,137.48,16.3042]
[1728595243575,0.25098,137.54,137.48,17.75855701]
[1728595243769,0.25098,137.54,137.48,16.3042]
[1728595249484,7.52158,137.54,137.48,16.3042]
[1728595252993,0.25098,137.54,137.48,16.3042]
[1728595256421,7.52158,137.54,137.48,16.3042]
[1728595256701,0.25098,137.52,137.48,16.3042]
[1728595258684,24.027864,137.53,137.48,16.3042]
[1728595268589,0.25098,137.53,137.48,16.3042]
[1728595268795,7.27,137.56,137.49,1.45451001]
[1728595269028,7.27,137.56,137.48,16.3042]
[1728595269910,24.027864,137.55,137.48,16.3042]
[1728595275223,31.297964,137.55,137.48,16.3042]
[1728595279229,31.297964,137.55,137.49,1.4544518]
[1728595280404,31.297964,137.55,137.48,16.3042]
[1728595280910,24.027864,137.55,137.49,1.45448779]
[1728595283103,24.027864,137.55,137.48,16.3042]
[1728595287226,31.298264,137.55,137.48,16.3042]
[1728595295331,24.027864,137.55,137.46,6.4058]
[1728595295525,7.39859,137.5,137.44,23.89057018]
[1728595295748,0.25098,137.49,137.44,16.2951]
[1728595298148,7.52428,137.49,137.44,16.2951]
[1728595302058,0.25098,137.49,137.44,17.75014328]
[1728595302259,0.25098,137.49,137.44,16.2951]
[1728595308262,7.52418,137.49,137.44,16.2951]
[1728595310180,0.25098,137.49,137.44,17.75019031]
[1728595311579,0.25098,137.49,137.44,16.2951]
[1728595314055,0.25098,137.49,137.44,17.75006416]
[1728595314778,0.25098,137.49,137.44,16.2951]
[1728595316884,0.25098,137.49,137.44,17.75007151]
[1728595317866,0.25098,137.49,137.44,16.2951]
[1728595319476,0.25098,137.49,137.44,17.75006935]
[1728595321089,0.25098,137.49,137.44,16.2951]
[1728595323778,0.25098,137.49,137.44,17.74996973]
[1728595324683,0.25098,137.49,137.44,16.2951]
[1728595325074,0.12549,137.49,137.44,16.2951]
[1728595325407,0.12549,137.51,137.44,16.2951]
[1728595325994,0.12549,137.52,137.45,14.25301626]
[1728595326203,6.3637,137.56,137.46,6.4717]
[1728595326511,7.2705,137.55,137.47,16.6447]
[1728595327508,24.027864,137.54,137.47,16.6447]
[1728595328794,24.027864,137.54,137.48,30.0]
[1728595331000,7.2691,137.57,137.49,15.70747832]
[1728595331190,7.2691,137.57,137.49,45.70747832]
[1728595331519,7.2686,137.58,137.49,44.25301626]
[1728595332607,24.027864,137.57,137.49,44.25301626]
[1728595333338,0.25098,137.55,137.49,30.0]
[1728595333808,0.25098,137.55,137.49,44.25301626]
[1728595334009,0.25098,137.56,137.49,44.25301626]
[1728595334431,7.52068,137.56,137.49,44.25301626]
[1728595337905,0.25098,137.54,137.49,30.0]
[1728595340930,0.25098,137.52,137.47,16.6447]
[1728595341253,0.25098,137.52,137.48,30.0]
[1728595342431,0.25098,137.52,137.47,16.6447]
[1728595344563,0.25098,137.52,137.47,32.35238125]
[1728595344858,0.25098,137.52,137.47,16.6447]
[1728595345041,0.25098,137.52,137.47,32.35236897]
[1728595348359,0.25098,137.52,137.47,30.89771626]
[1728595348563,0.25098,137.52,137.47,16.6447]
[1728595352985,0.25098,137.52,137.47,18.09935458]
[1728595353490,0.25098,137.52,137.47,16.6447]
[1728595358375,0.25098,137.52,137.47,18.09937524]
[1728595359292,0.25098,137.52,137.47,32.3523915]
[1728595359486,0.25098,137.52,137.47,30.89771626]
[1728595359689,0.25098,137.52,137.47,16.6447]
[1728595372294,0.25098,137.52,137.47,18.09942333]
[1728595373518,0.25098,137.52,137.47,16.6447]
[1728595375093,0.25098,137.52,137.47,32.3523826]
[1728595382707,0.25098,137.53,137.47,32.3523826]
[1728595383322,0.25098,137.53,137.47,30.89771626]
[1728595383722,0.25098,137.53,137.47,16.6447]
[1728595391533,7.2699,137.56,137.48,30.0]
[1728595392630,24.027864,137.55,137.48,30.0]
[1728595392914,0.25098,137.55,137.48,30.0]
[1728595393112,24.027864,137.56,137.48,30.0]
[1728595393303,31.297464,137.56,137.48,30.0]
[1728595393698,24.027864,137.56,137.49,1.4543166]
[1728595393901,24.027864,137.57,137.51,15.93]
[1728595394136,24.027864,137.57,137.51,17.38419589]
[1728595396110,0.25098,137.57,137.51,17.38419589]
[1728595396732,0.25098,137.57,137.51,47.38419589]
[1728595397511,7.2681,137.59,137.51,61.63721215]
[1728595397718,7.2681,137.59,137.51,60.18301626]
[1728595397925,7.2681,137.59,137.52,1.45401195]
[1728595398830,0.25098,137.58,137.52,1.45401195]
[1728595399825,0.25098,137.58,137.51,60.18301626]
[1728595401230,0.25098,137.58,137.52,1.45399562]
[1728595401532,0.25098,137.58,137.51,60.18301626]
[1728595401833,0.25098,137.58,137.52,1.45400343]
[1728595402730,0.25098,137.58,137.52,31.45400343]
[1728595403135,0.25098,137.58,137.52,1.45400343]
[1728595403835,0.25098,137.58,137.51,30.18301626]
[1728595405220,0.25098,137.58,137.52,1.45400923]
[1728595405427,0.25098,137.58,137.51,30.18301626]
[1728595406724,0.25098,137.58,137.52,1.45401184]
[1728595407844,0.25098,137.58,137.52,30.0]
[1728595408135,0.25098,137.58,137.53,1.45400594]
[1728595408345,0.25098,137.58,137.52,30.0]
[1728595408712,0.25098,137.58,137.52,31.45401332]
[1728595409437,0.25098,137.58,137.52,30.0]
[1728595409735,7.58120141,137.65,137.57,14.25301626]
[1728595409947,7.58120141,137.65,137.58,1.45348309]
[1728595409948,7.2649,137.65,137.58,1.45348309]
[1728595411324,7.2644,137.66,137.58,31.45348309]
[1728595412731,90.31141683,137.7,137.58,61.98299935]
[1728595412732,31.292664,137.65,137.58,61.98299935]
[1728595413039,31.292664,137.65,137.59,1.45340882]
[1728595413445,0.12549,137.65,137.59,20.55021626]
[1728595413617,0.12549,137.65,137.6,1.4532785]
[1728595414227,7.2643,137.66,137.6,1.4532785]
[1728595414228,0.12549,137.66,137.6,1.4532785]
[1728595414715,0.25098,137.66,137.61,1.45322069]
[1728595417617,7.2639,137.67,137.61,15.70623695]
[1728595417618,0.25098,137.67,137.61,15.70623695]
[1728595418630,0.25098,137.67,137.61,45.70623695]
[1728595418837,0.25098,137.67,137.61,44.25301626]
[1728595420026,0.25098,137.67,137.62,1.45306049]
[1728595420220,0.25098,137.67,137.62,30.0]
[1728595422020,0.25098,137.67,137.61,15.70607783]
[1728595424055,24.027864,137.67,137.61,15.70607783]
[1728595424640,0.25098,137.68,137.62,30.37641626]
[1728595424830,0.25098,137.68,137.63,1.45292265]
[1728595425149,7.2627,137.69,137.63,1.45292265]
[1728595425747,7.5859371,137.7,137.64,6.5669]
[1728595425931,7.5859371,137.7,137.65,1.45279744]
[1728595426655,0.25098,137.69,137.65,1.45279744]
[1728595431654,0.25098,137.69,137.64,6.5669]
[1728595433065,0.25098,137.69,137.65,1.45276368]
[1728595434261,0.25098,137.69,137.64,6.5669]
[1728595434668,0.25098,137.69,137.64,8.01966229]
[1728595438361,0.25098,137.69,137.64,6.5669]
[1728595438741,0.25098,137.69,137.65,1.45275251]
[1728595440571,0.25098,137.69,137.64,6.5669]
[1728595441473,0.25098,137.69,137.65,1.45270113]
[1728595442873,0.25098,137.69,137.65,31.45270113]
[1728595443554,0.25098,137.69,137.65,1.45270113]
[1728595444677,0.25098,137.69,137.64,6.5669]
[1728595444857,0.25098,137.69,137.64,8.01964928]
[1728595447854,0.25098,137.69,137.64,6.5669]
[1728595448059,31.290664,137.69,137.64,6.5669]
[1728595448262,0.25098,137.69,137.64,6.5669]
[1728595453775,0.25098,137.69,137.64,8.01966093]
[1728595455464,24.027864,137.69,137.62,16.1234]
[1728595455670,24.027864,137.67,137.63,30.0]
[1728595455872,0.12549,137.66,137.63,30.0]
[1728595456487,0.25098,137.66,137.63,30.0]
[1728595456661,0.25098,137.66,137.62,16.1234]
[1728595457278,7.51528,137.66,137.62,16.1234]
[1728595458376,18.4794371,137.7,137.62,16.1234]
[1728595458575,0.3237371,137.7,137.63,1.45296015]
[1728595459294,7.2627,137.69,137.63,15.70597641]
[1728595459592,7.2632,137.68,137.63,14.25301626]
[1728595459793,7.2632,137.68,137.62,30.37641626]
[1728595460296,0.3237371,137.7,137.62,30.37641626]
[1728595460297,7.2628,137.69,137.62,30.37641626]
[1728595460672,0.25098,137.67,137.62,30.37641626]
[1728595460878,0.25098,137.67,137.63,14.25301626]
[1728595463099,0.3237371,137.7,137.62,30.37641626]
[1728595463274,0.3237371,137.7,137.63,30.0]
[1728595464493,0.3237371,137.7,137.62,30.37641626]
[1728595464911,0.25098,137.69,137.62,30.37641626]
[1728595466802,0.25098,137.69,137.63,1.45277802]
[1728595467004,0.25098,137.69,137.64,14.25301626]
[1728595467211,0.25098,137.69,137.65,1.45266461]
[1728595468408,0.25098,137.69,137.64,14.25301626]
[1728595469001,0.25098,137.69,137.65,1.45263192]
[1728595469679,0.3237371,137.7,137.65,1.45263192]
[1728595470100,0.3237371,137.7,137.65,15.7278]
[1728595470704,0.3237371,137.7,137.66,14.25301626]
[1728595471713,0.3237371,137.7,137.66,15.70551164]
[1728595472911,0.3237371,137.7,137.66,14.25301626]
[1728595473883,0.3237371,137.7,137.67,14.25301626]
[1728595479525,0.3237371,137.7,137.68,15.70542812]
[1728595479820,0.3237371,137.7,137.69,1.45236207]
[1728595482905,0.3237371,137.7,137.68,14.25301626]
[1728595486016,0.3237371,137.7,137.69,1.45236731]
[1728595489317,0.3237371,137.7,137.69,15.70538357]
[1728595490836,0.3237371,137.7,137.69,14.25301626]
[1728595497829,0.3237371,137.7,137.67,14.25301626]
[1728595500246,0.3237371,137.7,137.68,14.25301626]
[1728595500419,0.3237371,137.7,137.65,15.7278]
[1728595500744,0.12549,137.69,137.66,30.0]
[1728595501437,0.25098,137.69,137.65,17.18059231]
[1728595501647,0.12549,137.69,137.66,15.70567438]
[1728595501820,0.12549,137.69,137.67,14.25301626]
[1728595503046,0.3237371,137.7,137.67,14.25301626]
[1728595503751,0.3237371,137.7,137.68,15.70550426]
[1728595508941,0.3237371,137.7,137.69,14.25301626]
[1728595514343,0.3237371,137.7,137.69,30.60411626]
[1728595515255,0.3237371,137.7,137.69,54.38100026]
[1728595515960,0.3237371,137.7,137.69,84.38100026]
[1728595520463,0.3237371,137.7,137.69,85.83286283]
[1728595521949,0.3237371,137.7,137.69,84.38100026]
[1728595523351,0.3237371,137.7,137.69,85.83286672]
[1728595524762,13.6647,137.79,137.69,85.83286672]
[1728595524763,0.25098,137.78,137.69,85.83286672]
[1728595524963,0.25098,137.78,137.73,14.25301626]
[1728595534559,0.25098,137.78,137.74,15.70487836]
[1728595536178,0.25098,137.79,137.74,15.70487836]
[1728595538548,0.25098,137.79,137.75,14.25301626]
[1728595544273,0.25098,137.79,137.74,1.45171987]
[1728595544463,7.50838,137.79,137.73,16.0437]
[1728595548079,0.25098,137.79,137.73,16.0437]
[1728595549864,0.25098,137.79,137.73,30.29671626]
[1728595552271,0.25098,137.79,137.74,1.45179779]
[1728595552684,0.25098,137.79,137.73,30.29671626]
[1728595552890,0.25098,137.79,137.74,1.45172736]
[1728595557006,7.2565,137.81,137.75,14.25301626]
[1728595558110,0.12549,137.8,137.75,14.25301626]
[1728595558291,0.25098,137.8,137.75,14.25301626]
[1728595561187,0.25098,137.8,137.73,30.29671626]
[1728595565380,7.50788,137.8,137.73,16.0437]
[1728595565693,7.50788,137.8,137.73,30.29671626]
[1728595570888,0.25098,137.8,137.73,30.29671626]
[1728595572085,0.25098,137.8,137.75,14.25301626]
[1728595576077,0.25098,137.8,137.76,1.45153826]
[1728595577897,18.9853903,137.84,137.75,14.25301626]
[1728595577898,0.8481903,137.84,137.79,14.25301626]
[1728595578210,0.8481903,137.84,137.8,1.45131878]
[1728595578400,0.8481903,137.84,137.79,14.25301626]
[1728595578908,0.8481903,137.84,137.8,14.25301626]
[1728595581205,0.8481903,137.84,137.81,1.45101367]
[1728595582012,7.5743014,137.93,137.85,22.7912]
[1728595582214,16.07714103,137.98,137.85,22.7912]
[1728595582215,8.0956903,137.98,137.87,16.1753]
[1728595582510,0.8481903,137.98,137.94,14.25301626]
[1728595583209,8.0955903,137.98,137.95,30.0]
[1728595583386,0.8481903,137.98,137.95,30.0]
[1728595584400,8.0955903,137.98,137.96,30.0]
[1728595585414,0.12549,137.97,137.96,30.0]
[1728595585624,24.027864,137.97,137.96,30.0]
[1728595585987,0.8481903,137.98,137.96,30.0]
[1728595586387,8.0955903,137.98,137.96,30.0]
[1728595587085,0.12549,137.97,137.96,30.0]
[1728595587607,31.275764,137.97,137.96,30.0]
[1728595587809,0.8481903,137.98,137.96,30.0]
[1728595588390,8.0956903,137.98,137.96,30.0]
[1728595588893,0.8481903,137.98,137.96,30.0]
[1728595589088,0.25098,137.97,137.96,30.0]
[1728595589307,31.275764,137.97,137.96,30.0]
[1728595589790,24.027864,137.97,137.96,30.0]
[1728595590907,0.25098,137.97,137.96,30.0]
[1728595591111,24.027864,137.97,137.92,14.25301626]
[1728595591297,24.027864,137.97,137.91,22.7839]
[1728595591298,0.12549,137.95,137.93,30.0]
[1728595591617,0.25098,137.95,137.93,30.0]
[1728595591999,0.12549,137.96,137.93,30.0]
[1728595592196,7.37429,137.96,137.93,30.0]
[1728595592426,7.37499,137.94,137.93,30.0]
[1728595592622,24.027864,137.94,137.93,30.0]
[1728595593224,0.25098,137.94,137.93,30.0]
[1728595593617,0.12549,137.93,137.91,16.3639]
[1728595594122,0.12549,137.93,137.92,30.0]
[1728595600934,0.12549,137.94,137.92,30.0]
[1728595601141,0.25098,137.94,137.92,30.0]
[1728595609322,0.25098,137.95,137.92,30.0]
[1728595610832,24.027864,137.96,137.92,30.0]
[1728595611219,7.49938,137.96,137.88,30.59531626]
[1728595611424,7.49938,137.96,137.9,30.0]
[1728595620657,0.12549,137.94,137.9,30.0]
[1728595620841,0.25098,137.92,137.9,30.0]
[1728595621142,0.12549,137.92,137.9,30.0]
[1728595621527,0.25098,137.93,137.9,30.0]
[1728595624246,7.2485,137.96,137.91,1.45011049]
[1728595624554,7.2481,137.97,137.91,30.0]
[1728595624743,7.2484,137.96,137.91,30.0]
[1728595625446,0.25098,137.95,137.91,30.0]
[1728595626626,24.027864,137.95,137.91,30.0]
[1728595627441,31.276864,137.95,137.91,30.0]
[1728595628628,24.027864,137.95,137.91,30.0]
[1728595631053,23.527864,137.95,137.91,30.0]
[1728595631652,7.25,137.93,137.91,30.0]
[1728595631834,7.2496,137.94,137.91,30.0]
[1728595633351,7.50118,137.93,137.91,30.0]
[1728595634563,7.50058,137.94,137.91,30.0]
[1728595636753,0.25098,137.92,137.91,30.0]
[1728595643944,0.25098,137.92,137.88,16.3423]
[1728595644266,0.25098,137.92,137.89,30.0]
[1728595645138,7.50258,137.9,137.85,15.3613]
[1728595645354,7.50258,137.9,137.86,30.0]
[1728595645740,0.25098,137.9,137.86,30.0]
[1728595645944,0.25098,137.88,137.86,30.0]
[1728595647862,7.50358,137.88,137.86,30.0]
[1728595648251,7.50358,137.88,137.82,24.39325025]
[1728595648565,7.50358,137.88,137.83,30.0]
[1728595649251,0.25098,137.88,137.83,30.0]
[1728595649753,7.50368,137.88,137.83,30.0]
[1728595650663,0.25098,137.86,137.83,30.0]
[1728595651138,0.25098,137.86,137.82,24.39325025]
[1728595653675,0.25098,137.86,137.82,25.84416897]
[1728595654253,0.25098,137.86,137.82,24.39325025]
[1728595655374,0.25098,137.86,137.82,25.84416813]
[1728595655748,0.25098,137.86,137.82,24.39325025]
[1728595658773,0.25098,137.86,137.82,15.2766]
[1728595665279,0.25098,137.86,137.82,16.72756282]
[1728595666174,0.25098,137.86,137.82,15.2766]
[1728595671576,7.50478,137.86,137.82,15.2766]
[1728595671878,0.25098,137.84,137.82,15.2766]
[1728595676968,0.12549,137.84,137.82,15.2766]
[1728595686070,16.93467012,137.94,137.82,15.2766]
[1728595686289,16.93467012,137.94,137.82,16.72753219]
[1728595686492,7.2527,137.88,137.82,15.2766]
[1728595687507,24.027864,137.87,137.82,15.2766]
[1728595688007,31.281164,137.87,137.82,15.2766]
[1728595699688,7.2517,137.9,137.83,30.0]
[1728595700012,7.2517,137.9,137.83,44.25301626]
[1728595700816,7.2517,137.9,137.83,45.70378926]
[1728595700995,24.027864,137.89,137.83,45.70378926]
[1728595701188,24.027864,137.89,137.83,31.450773]
[1728595701392,24.027864,137.89,137.83,45.70378926]
[1728595705708,24.027864,137.89,137.83,31.450773]
[1728595706614,24.027864,137.89,137.83,1.450773]
[1728595708716,24.027864,137.89,137.82,29.52961626]
[1728595708914,24.027864,137.89,137.83,1.45077504]
[1728595709299,24.027864,137.89,137.82,29.52961626]
[1728595709602,24.027864,137.89,137.83,30.0]
[1728595710193,24.027864,137.89,137.83,31.45077516]
[1728595711014,24.027864,137.89,137.83,30.0]
[1728595711320,24.027864,137.89,137.82,29.52961626]
[1728595711506,24.027864,137.89,137.83,1.45077506]
[1728595713317,31.279964,137.89,137.83,1.45077506]
[1728595713507,31.279964,137.89,137.82,29.52961626]
[1728595713821,31.279964,137.89,137.83,1.45077861]
[1728595714401,31.279964,137.89,137.83,31.45077861]
[1728595716111,24.027864,137.89,137.83,31.45077861]
[1728595720231,31.279964,137.89,137.83,31.45077861]
[1728595721222,31.279964,137.89,137.83,30.0]
[1728595722002,31.279964,137.89,137.83,31.45082691]
[1728595726206,0.25098,137.87,137.83,30.0]
[1728595727132,0.25098,137.87,137.82,29.52961626]
[1728595727308,0.25098,137.87,137.83,1.45080207]
[1728595728330,0.25098,137.88,137.83,1.45080207]
[1728595728629,0.25098,137.88,137.82,29.52961626]
[1728595729506,0.25098,137.88,137.83,1.45080224]
[1728595732832,0.25098,137.88,137.83,31.45080224]
[1728595733130,0.25098,137.88,137.83,30.0]
[1728595740524,0.25098,137.88,137.83,31.45079915]
[1728595741640,0.25098,137.88,137.83,30.0]
[1728595743241,0.25098,137.88,137.83,31.450789]
[1728595743734,0.25098,137.88,137.83,30.0]
[1728595744041,0.25098,137.88,137.83,31.4507892]
[1728595745322,0.25098,137.88,137.83,30.0]
[1728595745646,0.25098,137.88,137.83,31.45078793]
[1728595745946,0.25098,137.88,137.83,30.0]
[1728595747421,0.25098,137.88,137.82,15.2766]
[1728595750254,7.50368,137.88,137.82,15.2766]
[1728595751248,7.50368,137.88,137.83,1.45079982]
[1728595751556,7.50368,137.88,137.82,29.52961626]
[1728595751846,7.50368,137.88,137.82,15.2766]
[1728595754256,7.50368,137.88,137.83,30.0]
[1728595756447,0.25098,137.88,137.83,30.0]
[1728595756631,0.25098,137.88,137.82,16.72739934]
[1728595756632,0.25098,137.85,137.82,15.2766]
[1728595756834,7.50518,137.85,137.82,15.2766]
[1728595757140,0.25098,137.83,137.78,15.4524]
[1728595757349,0.25098,137.83,137.8,30.0]
[1728595757650,24.027864,137.83,137.8,30.0]
[1728595757957,31.283164,137.83,137.8,30.0]
[1728595758135,24.027864,137.83,137.8,30.0]
[1728595758534,31.283164,137.83,137.8,30.0]
[1728595758740,31.283164,137.83,137.78,15.4524]
[1728595760948,24.027864,137.83,137.78,16.90381807]
[1728595761265,24.027864,137.83,137.78,15.4524]
[1728595761562,24.027864,137.83,137.79,1.45135986]
[1728595761857,24.027864,137.83,137.78,15.4524]
[1728595763861,24.027864,137.83,137.78,16.90378886]
[1728595765866,24.027864,137.83,137.79,30.0]
[1728595767159,24.027864,137.83,137.78,31.15680512]
[1728595767360,24.027864,137.83,137.78,31.15673559]
[1728595767752,0.25098,137.83,137.78,16.90371933]
[1728595767961,0.25098,137.83,137.78,31.15673559]
[1728595770180,0.25098,137.83,137.79,30.0]
[1728595770478,0.25098,137.83,137.78,31.15673559]
[1728595770793,0.25098,137.83,137.78,16.90371933]
[1728595770985,0.25098,137.83,137.78,31.15673559]
[1728595771860,0.12549,137.85,137.78,31.15673559]
[1728595772068,0.12549,137.85,137.79,14.25301626]
[1728595772684,0.12549,137.85,137.8,1.4510849]
[1728595772862,0.12549,137.85,137.79,14.25301626]
[1728595773284,0.12549,137.85,137.8,30.0]
[1728595784901,0.12549,137.84,137.8,30.0]
[1728595785903,0.12549,137.83,137.8,30.0]
[1728595787169,0.12549,137.83,137.79,1.4512616]
[1728595790302,0.12549,137.83,137.8,30.0]
[1728595790502,0.12549,137.83,137.79,1.4512616]
[1728595794282,0.12549,137.83,137.8,30.0]
[1728595800505,7.2533,137.87,137.81,1.45114405]
[1728595800814,7.253,137.88,137.81,1.45114405]
[1728595800993,6.4017,137.9,137.78,15.4524]
[1728595801197,6.4017,137.9,137.79,30.0]
[1728595801582,24.027864,137.89,137.79,30.0]
[1728595802112,24.027864,137.83,137.79,30.0]
[1728595807001,0.25098,137.83,137.79,30.0]
[1728595807200,24.027864,137.85,137.8,1.45121238]
[1728595807597,24.027864,137.85,137.79,44.25301626]
[1728595810411,24.027864,137.85,137.79,14.25301626]
[1728595814407,24.027864,137.85,137.8,30.0]
[1728595817216,24.027864,137.85,137.8,31.45110241]
[1728595817420,24.027864,137.85,137.8,30.0]
[1728595819201,24.027864,137.85,137.8,31.45110177]
[1728595819801,24.027864,137.85,137.8,30.0]
[1728595820001,24.027864,137.85,137.8,31.45110149]
[1728595820401,24.027864,137.85,137.8,30.0]
[1728595820601,24.027864,137.85,137.8,31.45110163]
[1728595821320,24.027864,137.85,137.8,30.0]
[1728595821521,24.027864,137.85,137.8,31.4511013]
[1728595822415,24.027864,137.85,137.8,30.0]
[1728595822801,0.25098,137.85,137.8,31.4511048]
[1728595823604,0.25098,137.85,137.8,45.70412106]
[1728595823926,0.25098,137.85,137.8,44.25301626]
[1728595824698,0.25098,137.85,137.81,1.45105218]
[1728595824907,0.25098,137.85,137.8,44.25301626]
[1728595825106,0.25098,137.85,137.81,1.45097706]
[1728595825313,0.25098,137.85,137.8,44.25301626]
[1728595825514,0.25098,137.85,137.81,14.25301626]
[1728595827621,0.25098,137.85,137.8,30.0]
[1728595827813,0.25098,137.85,137.8,44.25301626]
[1728595831727,0.25098,137.85,137.81,14.25301626]
[1728595831937,0.25098,137.85,137.8,14.25301626]
[1728595833342,0.25098,137.85,137.81,1.45093329]
[1728595833638,0.25098,137.85,137.8,14.25301626]
[1728595833931,0.12549,137.87,137.82,16.6287]
[1728595834122,0.12549,137.87,137.83,1.45078253]
[1728595834439,7.2515,137.91,137.83,14.25301626]
[1728595835136,7.2515,137.91,137.83,44.25301626]
[1728595835319,7.2515,137.91,137.84,14.25301626]
[1728595835519,6.2001,137.93,137.85,1.45060839]